Cogmind - Beta 11 *** ADVENTURER MODE // 2022.04.16 @ 21:48:05 Player: Olexender Result: Destroyed by 8R-AWN with 8R-AWN's Boregun Performance ------------- Evolutions (1) 500 Regions Visited (4) 800 Robots Destroyed (56) 280 Value Destroyed (1133) 1133 Prototype IDs (6) 120 Alien Tech Used (0) 0 Bonus (430) 430 TOTAL SCORE: 3263 Bonus ------- High Alert Combat Kills 130 Aligned with FarCom 300 Cogmind --------- Core Integrity 0/400 Matter 206/300 Energy 45/100 System Corruption 0% Temperature Cool (0) Movement Rolling (115) Ox1 Location -9/Exiles Parts ------- > --- POWER (2) -------- (None) > --- PROPULSION (2) --- Compact Wheel > --- UTILITY (3) ------ Large Storage Unit Improved Targeting Computer > --- WEAPON (2) ------- Light EM Pulse Cannon Longsword +1 > --- INVENTORY (15) --- Large Battery (200) High-capacity Matter Pod (130) Weight Redist. System Improved Terrain Scanner Improved Assault Rifle AWS/Autocannon Mining Laser Peak State ------------ > --- POWER ------------ Cooled Ion Engine Light Nuclear Core > --- PROPULSION ------- Compact Wheel Compact Wheel > --- UTILITY ---------- Cooling System Medium Storage Unit Chronowheel > --- WEAPON ----------- Advanced Beam Cannon Improved Assault Rifle > --- INVENTORY -------- Weight Redist. System Improved Terrain Scanner Improved Targeting Computer Trap Extractor Light EM Pulse Cannon Advanced Beam Cannon Improved Assault Rifle Rocket Launcher Mining Laser [Rating: 32] Favorites ----------- Power Cooled Ion Engine Engine Cooled Ion Engine Power Core Light Nuclear Core Propulsion Compact Wheel Leg Aluminum Leg Wheel Compact Wheel Utility Cooling System Device Cooling System Storage Medium Storage Unit Processor Transport Network Coupler Weapon Improved Assault Rifle Energy Gun Medium Laser Energy Cannon Advanced Beam Cannon Ballistic Gun Improved Assault Rifle Launcher Rocket Launcher Special Weapon Mining Laser Slashing Weapon Longsword +1 Build | -11 -10 -9 -9 -9 ------- Run | Scr Mat Mat Min Exi Slots Evolved 2 | . . 2 . . Power 1 | . . 1 . . Propulsion . | . . . . . Utility 1 | . . 1 . . Weapon . | . . . . . Parts Attached 36 | 8 4 10 1 13 Power 6 | 1 . 4 1 . Engine 5 | 1 . 4 . . Core 1 | . . . 1 . Reactor . | . . . . . Propulsion 9 | 3 4 1 . 1 Treads . | . . . . . Leg 2 | 2 . . . . Wheel 7 | 1 4 1 . 1 Hover . | . . . . . Flight . | . . . . . Utility 9 | 2 . 3 . 4 Device 4 | 1 . 1 . 2 Storage 3 | 1 . 1 . 1 Processor 2 | . . 1 . 1 Hackware . | . . . . . Protection . | . . . . . Artifact . | . . . . . Weapon 12 | 2 . 2 . 8 Energy Gun 1 | 1 . . . . Energy Cannon 2 | . . 1 . 1 Ballistic Gun 4 | 1 . 1 . 2 Ballistic Cannon . | . . . . . Launcher 1 | . . . . 1 Special Weapon 1 | . . . . 1 Impact Weapon . | . . . . . Slashing Weapon 3 | . . . . 3 Piercing Weapon . | . . . . . Special Melee Weapon . | . . . . . Unidentified Prototypes 4 | . . 2 . 2 Parts Lost 10 | . . 3 . 7 Power 3 | . . 1 . 2 Propulsion 2 | . . 1 . 1 Utility 2 | . . 1 . 1 Weapon 3 | . . . . 3 Highest Loss Streak 7 | . . 2 . 7 To Critical Strikes 2 | . . . . 2 Average Slot Usage (%) 97 | . 100 90 100 98 Engine 14 | . 14 19 17 10 Core 5 | . . . 4 10 Wheel 21 | . 21 18 22 21 Device 12 | . 14 15 11 10 Storage 11 | . 14 11 11 11 Processor 8 | . . 3 11 11 Energy Gun 2 | . 14 3 . . Energy Cannon 8 | . . 7 11 10 Ballistic Gun 10 | . 14 11 11 9 Naked Turns . | . . . . . Heaviest Build 42 | 14 14 33 32 42 Greatest Support 32 | 20 32 32 32 32 Greatest Overweight (x) 1 | . . 1 . 1 Average Overweight (x) . | . . . . . Largest Inventory Capacity 15 | 8 8 10 10 15 Average Capacity 10 | 7 8 9 10 13 Most Carried 12 | 6 8 10 10 12 Average Carried 9 | 3 7 8 9 11 Final Capacity 15 | 8 8 10 10 15 Final Carried 10 | 5 8 10 10 9 Class Distribution -------------------- 97% | Mutant Dominant Class ---------------- Mutant | -10/Materials Mutant | -9/Materials Mutant | -9/Mines Mutant | -9/Exiles Resources | -11 -10 -9 -9 -9 ----------- Run | Scr Mat Mat Min Exi Matter Collected 725 | 292 54 177 115 87 Remotely . | . . . . . Salvage Created 1624 | 132 199 672 576 45 Parts 118 | 7 16 47 48 . Haulers Intercepted 3 | . . 3 . . Recyclers Shooed . | . . . . . Parts Field Recycled . | . . . . . Retrieved Matter . | . . . . . Parts Self-Destructed . | . . . . . Prevented . | . . . . . Kills | -11 -10 -9 -9 -9 ------- Run | Scr Mat Mat Min Exi Combat Hostiles Destroyed 54 | . 7 18 23 6 Melee 3 | . . . . 3 Guns 26 | . 7 11 8 . Cannons 21 | . . 6 15 . AOE 3 | . . . . 3 Classes Destroyed 8 | 2 2 3 . 1 Tunneler 2 | 2 . . . . Hauler 3 | . . 3 . . Recycler 1 | 1 . . . . Operator 2 | . . 2 . . Swarmer 28 | . 3 11 14 . Grunt 17 | . 4 4 9 . Sentry 3 | . . 3 . . Assembled 6 | . . . . 6 Best Kill Streak 10 | 2 4 10 6 6 Combat Bots Only 8 | . 4 8 6 6 Max Kills in Single Turn 2 | 1 1 1 1 2 Gunslinging . | . . . . . Exploded 2 | . . . . 2 Melee 1 | . . . . 1 Uniques/NPCs Destroyed . | . . . . . Combat | -11 -10 -9 -9 -9 -------- Run | Scr Mat Mat Min Exi Damage Taken 1430 | . 84 448 365 533 Core 413 | . 12 133 82 186 Absorbed by Shields . | . . . . . Core Remaining (%) 97 | 100 95 . . . Volleys Fired 109 | 12 14 37 35 11 Largest 2 | 2 2 2 2 2 Hottest 91 | 70 70 91 91 91 Shots Fired 210 | 24 28 74 70 14 Gun 143 | 24 28 53 35 3 Cannon 60 | . . 21 35 4 Launcher 7 | . . . . 7 Special . | . . . . . Kinetic 101 | 12 14 37 35 3 Thermal 101 | 12 14 37 35 3 Explosive 7 | . . . . 7 Electromagnetic 1 | . . . . 1 Robot Hit Streak 16 | 9 16 15 15 3 Robot Miss Streak 3 | 3 1 2 2 1 Penetration Max . | . . . . . Secondary Targets . | . . . . . Shots Hit Robots 148 | 17 23 47 48 13 Core Hits 86 | 4 13 28 27 14 Critical Kills 1 | . . 1 . . Critical Parts Destroyed . | . . . . . Critical Strikes 6 | 1 2 3 . . Burn 5 | 1 2 2 . . Meltdown 1 | . . 1 . . Melee Attacks 5 | . . . . 5 Impact . | . . . . . Slashing 5 | . . . . 5 Piercing . | . . . . . Sneak Attacks . | . . . . . Combat Hostiles . | . . . . . Follow-up Attacks . | . . . . . Damage Inflicted 2660 | 197 231 798 951 483 Guns 1166 | 197 231 414 296 28 Cannons 1026 | . . 329 655 42 Explosions 234 | . . 55 . 179 Melee 234 | . . . . 234 Ramming . | . . . . . Kinetic 753 | 72 94 263 296 28 Thermal 1493 | 125 137 535 655 41 Explosive 179 | . . . . 179 Electromagnetic 1 | . . . . 1 Impact . | . . . . . Slashing 234 | . . . . 234 Piercing . | . . . . . Highest Corruption . | . . . . . Average Corruption . | . . . . . Corruption Purged . | . . . . . Corruption Blocked . | . . . . . Overload Shots . | . . . . . Overflow Damage 25 | . . 2 . 23 Projectiles 15 | . . 2 . 13 Explosions . | . . . . . Melee 10 | . . . . 10 Knockbacks . | . . . . . Impact . | . . . . . Kinetic . | . . . . . Secondary . | . . . . . Self-Inflicted Damage 80 | . . 80 . . Shots 2 | . . 2 . . Rammed . | . . . . . Targets Rammed . | . . . . . Kicked . | . . . . . Crushed . | . . . . . Highest Temperature 108 | 100 108 12 9 . Average Temperature 34 | 33 41 5 6 . Received Heat Transfer 267 | . 36 117 114 . Siege Activations . | . . . . . Robots Corrupted . | . . . . . Combat Hostiles . | . . . . . Parts Fried . | . . . . . Impact Corruptions . | . . . . . Robots Melted 1 | . . 1 . . Combat Hostiles 1 | . . 1 . . Parts Melted 10 | . 4 5 1 . Heat Transferred 3491 | 444 555 1234 1184 74 Parts Sabotaged . | . . . . . Parts Stolen . | . . . . . Parts Stripped . | . . . . . Power Chain Reactions . | . . . . . Missiles Intercepted . | . . . . . Alert | -11 -10 -9 -9 -9 ------- Run | Scr Mat Mat Min Exi Peak Influence 722 | 15 234 722 653 . Initial 238 | . 8 84 238 . Average 404 | 5 62 503 550 . Maximum Alert Level 3 | . 1 3 2 . Low Security (%) 27 | 100 90 10 . . Level 1 12 | . 9 26 6 . Level 2 50 | . . 24 93 . Level 3 10 | . . 38 . . Level 4 . | . . . . . Level 5 . | . . . . . High Security . | . . . . . Max Security . | . . . . . Squads Dispatched 4 | . 3 1 . . Investigation 3 | . 3 . . . Extermination . | . . . . . Reinforcement 1 | . . 1 . . Assault . | . . . . . Garrison . | . . . . . Intercept . | . . . . . Searches Triggered . | . . . . . Construction Impeded . | . . . . . Haulers Reinforced . | . . . . . Active Scanning Responses . | . . . . . Cargo Convoy Interrupts . | . . . . . Stealth | -11 -10 -9 -9 -9 --------- Run | Scr Mat Mat Min Exi Distress Signals . | . . . . . Communications Jammed . | . . . . . Distress Signals . | . . . . . Times Spotted 63 | . 8 22 25 8 Peak Tracking Total 9 | . 3 7 4 9 Tactical Retreats 4 | . . 2 2 . Traps | -11 -10 -9 -9 -9 ------- Run | Scr Mat Mat Min Exi Traps Triggered . | . . . . . Indirectly . | . . . . . Trap Hack Attempts . | . . . . . Triggered . | . . . . . Disarmed . | . . . . . Reprogrammed . | . . . . . Reused . | . . . . . Traps Extracted . | . . . . . Installed . | . . . . . Triggered . | . . . . . Machines | -11 -10 -9 -9 -9 ---------- Run | Scr Mat Mat Min Exi Machines Disabled 6 | . . 3 . 3 Max in Single Turn 3 | . . 3 . 1 Machines Sabotaged . | . . . . . Garrisons Compromised . | . . . . . Overloaded Fab Kills . | . . . . . Hacking | -11 -10 -9 -9 -9 --------- Run | Scr Mat Mat Min Exi Machines Accessed 8 | . 4 . . 4 Terminals 4 | . 4 . . . Fabricators . | . . . . . Repair Stations . | . . . . . Recycling Units . | . . . . . Scanalyzers . | . . . . . Garrison Access . | . . . . . Total Hacks 68 | . 19 . . 49 Successful 56 | . 7 . . 49 Failed 12 | . 12 . . . Catastrophic 1 | . 1 . . . Database Lockouts . | . . . . . Manual 1 | . . . . 1 Terminals 19 | . 19 . . . Fabricators . | . . . . . Repair Stations . | . . . . . Recycling Units . | . . . . . Scanalyzers . | . . . . . Garrison Access . | . . . . . Terminal Hacks 56 | . 7 . . 49 Record 50 | . 1 . . 49 Prototype ID Bank 1 | . 1 . . . Level Access Points 1 | . 1 . . . Locate Traps 1 | . 1 . . . Recall Investigation 3 | . 3 . . . Fabricator Hacks . | . . . . . Repair Station Hacks . | . . . . . Recycling Unit Hacks . | . . . . . Scanalyzer . | . . . . . Garrison Access Hacks . | . . . . . Unauthorized Hacks . | . . . . . Terminals . | . . . . . Fabricators . | . . . . . Repair Stations . | . . . . . Recycling Units . | . . . . . Scanalyzers . | . . . . . Garrison Access . | . . . . . Data Cores Recovered 1 | . . 1 . . Used . | . . . . . Hacking Detections 4 | . 4 . . . Full Trace Events 4 | . 4 . . . Feedback Events . | . . . . . Feedback Blocked . | . . . . . Robot Schematics Acquired . | . . . . . Robots Built . | . . . . . Authchips . | . . . . . Time . | . . . . . Total Robot Build Rating . | . . . . . Part Schematics Acquired . | . . . . . Parts Built . | . . . . . Authchips . | . . . . . Time . | . . . . . Total Part Build Rating . | . . . . . Parts Repaired . | . . . . . Time . | . . . . . Parts Recycled . | . . . . . Recycled Matter . | . . . . . Retrieved Matter . | . . . . . Retrieved Components . | . . . . . Parts Scanalyzed . | . . . . . Part Schematics Acquired . | . . . . . Parts Damaged . | . . . . . Bothacking | -11 -10 -9 -9 -9 ------------ Run | Scr Mat Mat Min Exi Used RIF Installer . | . . . . . Robots Hacked . | . . . . . Non-combat . | . . . . . Combat . | . . . . . Robot Hacks Applied . | . . . . . Relay Couplers Released . | . . . . . Fabnet Peak Effective % . | . . . . . Robots Rewired . | . . . . . Allies Hacked . | . . . . . Hacks Repelled . | . . . . . Allies | -11 -10 -9 -9 -9 -------- Run | Scr Mat Mat Min Exi Total Allies . | . . . . . Largest Group . | . . . . . Highest-Rated Group . | . . . . . Highest-Rated Ally . | . . . . . Total Orders . | . . . . . Ally Attacks . | . . . . . Total Damage . | . . . . . Kills . | . . . . . Allies Corrupted . | . . . . . Allies Melted . | . . . . . Intel | -11 -10 -9 -9 -9 ------- Run | Scr Mat Mat Min Exi Robot Analysis Total . | . . . . . Derelict Logs Recovered 2 | . . . 2 . Drone Launches . | . . . . . Drone Recoveries . | . . . . . Exploration | -11 -10 -9 -9 -9 ------------- Run | Scr Mat Mat Min Exi Turns Passed 2121 | 122 246 386 651 716 Spaces Moved 1582 | 66 169 230 516 601 Core 10 | 10 . . . . Treads . | . . . . . Legs 75 | 37 38 . . . Wheels 1497 | 19 131 230 516 601 Hover . | . . . . . Flight . | . . . . . Fastest Speed 50 | 50 100 100 100 100 Average Speed 104 | 103 104 104 100 109 Slowest Speed 120 | 120 120 115 100 115 Overloaded Moves . | . . . . . Propulsion Burnouts . | . . . . . Robots Hopped . | . . . . . Cave-ins Triggered . | . . . . . Exploration Rate (%) 51 | 6 36 23 99 93 Regions Visited 4 Branch Regions 2 Pre-discovered Areas 2 | . . . 1 1 Known Exits Taken 1 | . 1 . . . Unknown Exits Taken 3 | 1 . 1 1 . Scrap Searched 2 | . . . 2 . Spaces Dug . | . . . . . Terrain Destroyed 62 | . . 36 . 26 Melee . | . . . . . Projectile 1 | . . 1 . . AOE 61 | . . 35 . 26 Terrain Rammed . | . . . . . Walls Destroyed . | . . . . . Machines Disabled . | . . . . . Actions | -11 -10 -9 -9 -9 --------- Run | Scr Mat Mat Min Exi Total 1840 | 97 215 307 581 640 Wait 46 | . 11 8 27 . Move 1578 | 65 168 229 515 601 Hop . | . . . . . Pick Up 42 | 12 10 14 1 5 Fast Attach 1 | . . . 1 . Attach 16 | 7 . 5 . 4 Detach . | . . . . . Swap 19 | 1 4 5 . 9 Drop 24 | . 8 9 2 5 Fire 109 | 12 14 37 35 11 Melee 5 | . . . . 5 Ram . | . . . . . Kick . | . . . . . Crush . | . . . . . Escape Stasis . | . . . . . Rewire . | . . . . . Trap . | . . . . . Miscellaneous . | . . . . . Route ------- -11/Scrapyard -10/Materials (discovered 3 exits: *Mat x3) -9/Materials (discovered 2 exits: [*Mat] / [*Min]) -9/Mines (discovered 3 exits: [*Mat x2] / *Exi) -9/Exiles (discovered 1 exit: [*Min]) History --------- Turn | Location | Event 2 | -11/Scrapyard | Met Revision 17 16 | -11/Scrapyard | Discovered new exit (range 14) 123 | -11/Scrapyard | Entered Materials 294 | -10/Materials | Discovered new exit (range 9) 304 | -10/Materials | Build established: Mutant 317 | -10/Materials | Identified exit to Materials 369 | -10/Materials | Entered another Materials area 369 | -9/Materials | Evolved 2 slots: Power x1, Utility x1 547 | -9/Materials | Destroyed 8 combat bots 605 | -9/Materials | Discovered new exit (range 6) 649 | -9/Materials | Discovered new exit (range 9) 755 | -9/Materials | Entered Mines 842 | -9/Mines | Discovered new exit (range 5) 1036 | -9/Mines | Discovered new exit (range 10) 1165 | -9/Mines | Learned location of Zion (-6) 1316 | -9/Mines | Core integrity fell below 50% 1402 | -9/Mines | Deemed a non-threat by the Exiles lab entrance 1402 | -9/Mines | Discovered new exit (range 5) 1406 | -9/Mines | Entered Exiles 1432 | -9/Exiles | Met 8R-AWN 1449 | -9/Exiles | Met EX-HEX 1480 | -9/Exiles | Met EX-BIN 1492 | -9/Exiles | Aligned with FarCom system 1493 | -9/Exiles | Given EX-Vault access code 1544 | -9/Exiles | Opened EX-Vault 1551 | -9/Exiles | Found Prototype Device 1557 | -9/Exiles | Identified Chronowheel 1557 | -9/Exiles | Activated Chronowheel 1561 | -9/Exiles | Found Prototype Ballistic Cannon 1567 | -9/Exiles | Found Prototype Slashing Weapon 1568 | -9/Exiles | Identified Longsword +1 1591 | -9/Exiles | Warned to stay clear of 0b10 Research branches 1681 | -9/Exiles | Met EX-DEC 1728 | -9/Exiles | Visited The Gauntlet 1948 | -9/Exiles | Discovered new exit (range 14) 2065 | -9/Exiles | Attacked by the Exiles 2102 | -9/Exiles | Core integrity fell below 20% 2122 | -9/Exiles | Destroyed by 8R-AWN with 8R-AWN's Boregun Last Messages --------------- 02103_ as-17947 destroyed. 02103_ Machine disabled. 02104_ Penetrated by HV Slug. 02107_ Destroyed Asb. Hover Unit. 02109_ as-34315 destroyed. 02109_ Penetrated by HV Slug. 02111_ as-18723 destroyed. 02112_ Penetrated by HV Slug. 02114_ Critical hit (Destroy). 02114_ Cooling System destroyed. 02114_ Penetrated by HV Slug. 02116_ The unstable cave ceiling collapses. 02116_ Penetrated by HV Slug. 02119_ The unstable cave ceiling collapses. 02119_ Penetrated by HV Slug. 02119_ Critical hit (Destroy). 02119_ Rocket Launcher destroyed. 02119_ Penetrated by HV Slug. 02122_ The unstable cave ceiling collapses. 02122_ Penetrated by HV Slug. Map ----- +----------------------------------------------------+ | ????????????????????# #????????????????????? | | ????????????????????# #????????????????????? | | ????????????????????# #????????????????????? | | ????????????????????#] = !X#????????????????????? | | ????????????????????## ##????????#???????????? | | ????????????????????#X #?????????????????????? | | ????????????????????## #?????????????????????? | | ?????????????????????# #?????????????????????? | | ?????????????????????# #########?????????????? | | ?????????????????????# ##""""""#?????????????? | | ?????????????????????# ## """#?????????????? | | ?????????????????????# X""#?????????????? | | ?????????????????????# ## """#?????????????? | | ?????????????######### ##""""""#?????????????? | | ?????????????#""""""## #########?????????????? | | ?????????????#"""" ## #?????????????????????? | | ?????????????#""X" #?????????????????????? | | ?????????????#" #?????????????????????? | | ?????????????#" ## #?????????????????????? | | ?????????????#" """"## #?#########???????????? | | ?????????????##"###### #?#"""""""#???????????? | | ????????????? "#????# % #?#"""""""#???????????? | | ????????????""" #????# #?#"""""""#???????????? | | ???????????#""" #???## ###"" """"#???????????? | | ????????????""" #???#" """"#???????????? | | ?????????????####???# @ """#???????????? | | ????????????????????#" % """#???????????? | | ????????????????????#" """#???????????? | | ?????########???????#" """#???????????? | | ?????# """#???????#" """##??????????? | | ?????#"" """#???????## """""??????????? | | ?????#"" #????????# """##??????????? | | ?????#"" #????????# "X" """""??????????? | | ?????#"" "#????????# """ # ??????????? | | ?????# ""#???????? """"""#???????????? | | ?????#"" ""#???????# #######???????????? | | ?????### ###??????# #?????????????????? | | ##???### ###?###### g #?????????????????? | | "#####X# #"###""""" # #?????????????????? | | """""" " " ???###########?????? | | "" """ " #####"""""""""##????? | | " " " """ """"##???? | | "" " #???? | | " """#???? | | " "#???? | | " "##??? | | " ""###? | | """ """""" """#? | | " ######""" "#? | | " ""##????#####""" ## | +----------------------------------------------------+ Best States ------------- Heat Dissipation 50 Energy Generation 23 Energy Capacity 430 Matter Stores 300 Matter Capacity 300 Sight Range 16 Terrain Scan Density 10 Resistance: KI 20 Resistance: TH 20 Resistance: EX 20 Resistance: EM 20 Resistance: I 20 Resistance: S 20 Resistance: P 20 Evasion (%) 55 Targeting Accuracy 6 Offensive Hacking 10 Item Schematics ----------------- None Robot Schematics ------------------ None Fabricated ------------ Nothing Alien Tech Used ----------------- None Achievements -------------- None Challenges ------------ None Game ------ Seed PropulsionMinesnifferUnit Manual? 0 Play Time 00:30:12 Cumulative 28.5 hours Start 2022.04.15 @ 05:34:56 End 2022.04.16 @ 21:48:05 Sessions 3 Manual Loads 0 Difficulty Adventurer Special Mode None Game No. 29 Rogue 0 Adventurer 29 Explorer 0 Win Type - Total 0 Types 0/0/0/0/0/0/0/0/0 Lore% 28 Gallery% 39 Achievement% 26 Wizard Run 0 Options --------- ASCII 0 Keyboard 0 Movement Mouse Keybinds 0 Fullscreen 1 Font 24/Smallcaps Map View 113x50 Tactical HUD 1 Map Filters NONE Filters NONE Steam 1 RUN: 8645ad10-0c84-45e9-896d-ca156e36bf59